bitfinex-derivatives/quotes_BTCF0:USTF0_20250504
["timestamp","ask_amount","ask_price","bid_price","bid_amount"]
[1746330927233,0.6874332,95848.0,95847.0,0.2086345]
[1746330927730,0.7215332,95848.0,95847.0,0.2086345]
[1746330928937,0.7225332,95848.0,95847.0,0.2086345]
[1746330929638,0.7879332,95848.0,95847.0,0.2086345]
[1746330934847,0.7879332,95848.0,95847.0,0.2411345]
[1746330938049,0.7879332,95848.0,95847.0,0.2086345]
[1746330942651,0.4271332,95848.0,95847.0,0.2086345]
[1746330949470,0.4271332,95848.0,95847.0,0.2418345]
[1746330950265,0.3950332,95848.0,95847.0,0.2418345]
[1746330961174,0.3950332,95848.0,95847.0,0.2730345]
[1746330972070,0.2770332,95848.0,95847.0,0.2730345]
[1746330973074,0.3619332,95848.0,95847.0,0.2730345]
[1746330974281,0.3943332,95848.0,95847.0,0.2730345]
[1746330975476,0.3943332,95848.0,95847.0,0.2418345]
[1746330980377,0.3943332,95848.0,95847.0,0.3050345]
[1746330982285,0.3943332,95848.0,95847.0,0.0964]
[1746330982483,0.3943332,95848.0,95847.0,0.0632]
[1746330982781,0.2086367,95846.0,95845.0,0.21225261]
[1746330983186,0.3266367,95846.0,95845.0,0.21225261]
[1746330983488,0.3881367,95846.0,95845.0,0.21225261]
[1746330983785,0.49247271,95846.0,95845.0,0.21225261]
[1746330983979,0.49247271,95846.0,95845.0,0.11862411]
[1746330985182,0.2086541,95838.0,95833.0,0.0632]
[1746330985383,0.5694541,95838.0,95825.0,0.0632]
[1746330985585,0.6737981,95838.0,95825.0,0.0632]
[1746330985993,0.0521671,95832.0,95825.0,0.0632]
[1746330986184,0.3608,95826.0,95825.0,0.0632]
[1746330986591,0.5684803,95826.0,95825.0,0.0632]
[1746330986775,0.5674803,95826.0,95825.0,0.0632]
[1746330987181,0.6854803,95826.0,95825.0,0.0632]
[1746330987386,0.7511803,95826.0,95825.0,0.0632]
[1746330987887,0.7511803,95826.0,95825.0,0.0672]
[1746330988286,0.7511803,95826.0,95825.0,0.0692]
[1746330991892,0.75995843,95826.0,95825.0,0.0692]
[1746330993787,0.75995843,95826.0,95825.0,0.006]
[1746330999693,0.7511803,95826.0,95825.0,0.006]
[1746331000093,0.75968409,95826.0,95825.0,0.006]
[1746331000896,0.7511803,95826.0,95825.0,0.006]
[1746331003199,0.75968409,95826.0,95825.0,0.006]
[1746331010201,0.7511803,95826.0,95825.0,0.006]
[1746331011103,0.7511803,95826.0,95825.0,0.0385]
[1746331011308,0.7511803,95826.0,95825.0,0.0717]
[1746331014804,0.2086868,95823.0,95822.0,0.14792627]
[1746331015111,0.3266868,95823.0,95822.0,0.14792627]
[1746331015705,0.3896868,95823.0,95822.0,0.14792627]
[1746331015905,0.3896868,95823.0,95822.0,0.15092627]
[1746331016613,0.3896868,95823.0,95822.0,0.15392627]
[1746331016914,0.3896868,95823.0,95822.0,0.006]
[1746331018011,0.3896868,95823.0,95822.0,0.0701]
[1746331021217,0.3896868,95823.0,95822.0,0.278789]
[1746331021908,0.3896868,95823.0,95822.0,0.0701]
[1746331030711,0.3896868,95823.0,95822.0,0.006]
[1746331032223,0.2087129,95811.0,95810.0,0.2653501]
[1746331032415,0.5695129,95811.0,95810.0,0.2653501]
[1746331032724,0.2087129,95811.0,95810.0,0.2653501]
[1746331033118,0.3267129,95811.0,95810.0,0.2653501]
[1746331033313,0.3888129,95811.0,95810.0,0.2653501]
[1746331033520,0.3888129,95811.0,95810.0,0.2753501]
[1746331034428,0.39805507,95811.0,95810.0,0.2753501]
[1746331034926,0.3888129,95811.0,95810.0,0.2753501]
[1746331035127,0.3888129,95811.0,95810.0,0.10712242]
[1746331036829,0.3888129,95811.0,95810.0,0.01]
[1746331037735,0.39795085,95811.0,95810.0,0.01]
[1746331038141,0.3888129,95811.0,95810.0,0.01]
[1746331059362,0.3576129,95811.0,95810.0,0.01]
[1746331060160,0.2396129,95811.0,95810.0,0.01]
[1746331060364,0.2396129,95811.0,95810.0,0.0404]
[1746331060662,0.2396129,95811.0,95810.0,0.2491151]
[1746331061561,0.2396129,95811.0,95810.0,0.2798151]
[1746331075173,0.2396129,95811.0,95810.0,0.2494151]
[1746331077984,0.2396129,95811.0,95810.0,0.2187151]
[1746331079183,0.3576129,95811.0,95810.0,0.2187151]
[1746331080287,0.2087238,95806.0,95805.0,0.0632]
[1746331080788,0.2087238,95806.0,95797.0,1e-07]
[1746331080789,0.2087413,95798.0,95797.0,1e-07]
[1746331080979,0.5695413,95798.0,95797.0,1e-07]
[1746331081179,0.5695413,95798.0,95780.0,0.2087791]
[1746331081180,0.2087522,95793.0,95792.0,0.27290392]
[1746331081380,0.21805519,95793.0,95792.0,0.27290392]
[1746331081690,0.31844719,95793.0,95792.0,0.27290392]
[1746331081884,0.33844719,95793.0,95792.0,0.27290392]
[1746331082093,0.45244719,95793.0,95792.0,0.27290392]
[1746331082388,0.2087827,95779.0,95778.0,0.37179281]
[1746331082788,0.1957827,95779.0,95778.0,0.37179281]
[1746331083286,0.3776827,95779.0,95778.0,0.37179281]
[1746331083691,0.3776827,95779.0,95778.0,0.37579281]
[1746331084491,0.3776827,95779.0,95778.0,0.58457761]
[1746331084689,0.3776827,95779.0,95778.0,0.37579281]
[1746331085091,0.3806827,95779.0,95778.0,0.37579281]
[1746331087702,0.3806827,95779.0,95778.0,0.00409658]
[1746331096100,0.38079616,95779.0,95778.0,8e-08]
[1746331099202,0.39079616,95779.0,95778.0,8e-08]
[1746331102114,0.2088023,95770.0,95769.0,0.00784846]
[1746331102312,0.2088088,95767.0,95766.0,0.0312]
[1746331103104,0.3268088,95767.0,95766.0,0.0312]
[1746331103812,0.3248088,95767.0,95766.0,0.0312]
[1746331104206,0.3288088,95767.0,95766.0,0.0322]
[1746331104611,0.3328088,95767.0,95766.0,0.0332]
[1746331104909,0.3328088,95767.0,95766.0,0.04108134]
[1746331112821,0.2088176,95763.0,95762.0,0.00156638]
[1746331114019,0.2119239,95763.0,95762.0,0.00256638]
[1746331114220,0.3299239,95763.0,95762.0,0.00256638]
[1746331114419,0.3299239,95763.0,95762.0,0.00356638]
[1746331114622,0.3329239,95763.0,95762.0,0.00356638]
[1746331120029,0.3630239,95763.0,95762.0,0.00356638]
[1746331135337,0.3600239,95763.0,95762.0,0.00256638]
[1746331135543,0.3670239,95763.0,95762.0,0.00356638]
[1746331136038,0.3640239,95763.0,95762.0,0.00256638]
[1746331136239,0.3700239,95763.0,95762.0,0.00256638]
[1746331137038,0.3640239,95763.0,95762.0,0.00256638]
[1746331137238,0.3730239,95763.0,95762.0,0.00256638]
[1746331138738,0.3730239,95763.0,95762.0,0.00156638]
[1746331145345,0.3730239,95763.0,95755.0,0.0314]
[1746331145346,0.2088328,95756.0,95755.0,0.0314]
[1746331145946,0.2088328,95756.0,95755.0,0.03924742]
[1746331146254,0.4414328,95756.0,95755.0,0.03924742]
[1746331146752,0.4484328,95756.0,95755.0,0.03924742]
[1746331146945,0.8152328,95756.0,95755.0,0.03924742]
[1746331147549,0.0522107,95752.0,95748.0,0.0327]
[1746331147749,0.2088459,95750.0,95749.0,0.0308]
[1746331148251,0.3911459,95750.0,95749.0,0.0308]
[1746331148555,0.2088524,95747.0,95746.0,0.20543602]
[1746331149350,0.2731524,95747.0,95746.0,0.20543602]
[1746331149546,0.2731524,95747.0,95746.0,0.21320748]
[1746331149957,0.2791524,95747.0,95746.0,0.21320748]
[1746331151456,0.2831524,95747.0,95746.0,0.21320748]
[1746331156159,0.2831524,95747.0,95746.0,0.00777146]
[1746331156352,0.2088655,95741.0,95740.0,0.0632]
[1746331156563,0.2088677,95740.0,95735.0,0.00104454]
[1746331156752,0.0636,95740.0,95739.0,0.83480049]
[1746331157055,0.01,95747.0,95746.0,0.2088546]
[1746331157264,0.0522045,95763.0,95762.0,0.2088197]
[1746331157864,0.2610287,95763.0,95762.0,0.2088197]
[1746331158062,0.2610287,95763.0,95762.0,0.2256197]
[1746331158455,0.0522587,95763.0,95762.0,0.2256197]
[1746331159156,0.0612587,95763.0,95762.0,0.2256197]
[1746331159358,0.0672587,95763.0,95762.0,0.2256197]
[1746331159861,0.2760829,95763.0,95762.0,0.2256197]
[1746331164669,0.2760829,95763.0,95762.0,0.2088197]
[1746331164964,0.2088197,95762.0,95761.0,0.0303]
[1746331165160,0.3063197,95762.0,95761.0,0.0303]
[1746331165664,0.3063197,95762.0,95760.0,0.3608]
[1746331165665,0.2088219,95761.0,95760.0,0.5696241]
[1746331166061,0.2078263,95759.0,95758.0,0.2088279]
[1746331166365,0.261043,95757.0,95756.0,0.208832]
[1746331166863,0.261043,95757.0,95756.0,0.313264]
[1746331167059,0.326843,95757.0,95756.0,0.313264]
[1746331167260,0.2088328,95756.0,95755.0,0.2088345]
[1746331167468,0.2088459,95750.0,95749.0,0.26513059]
[1746331167666,0.21862665,95750.0,95749.0,0.26513059]
[1746331167860,0.2088459,95750.0,95749.0,0.26513059]
[1746331168165,0.3268459,95750.0,95749.0,0.26513059]
[1746331168466,0.3916459,95750.0,95749.0,0.26513059]
[1746331168962,0.3966459,95750.0,95749.0,0.26613059]
[1746331169166,0.3996459,95750.0,95749.0,0.26613059]
[1746331171164,0.4496459,95750.0,95749.0,0.26613059]
[1746331171367,0.4496459,95750.0,95749.0,0.001]
[1746331171561,0.2088764,95736.0,95729.0,0.06316]
[1746331172062,0.2088764,95736.0,95732.0,0.2088839]
[1746331172570,0.2722764,95736.0,95730.0,0.2088887]
[1746331172759,0.2722764,95736.0,95729.0,0.06316]
[1746331172760,0.2722764,95736.0,95729.0,0.2088914]
[1746331173173,0.3902764,95736.0,95726.0,0.1154242]
[1746331173467,0.3902764,95736.0,95729.0,0.2088908]
[1746331173666,0.2088917,95729.0,95728.0,0.00785508]
[1746331173866,0.2078917,95729.0,95728.0,0.00785508]
[1746331174171,0.2088939,95728.0,95722.0,0.00010382]
[1746331174664,0.2415939,95728.0,95722.0,0.00010382]
[1746331174864,0.2405939,95728.0,95722.0,0.00010382]
[1746331175067,0.2079048,95723.0,95722.0,0.00010382]
[1746331175772,0.2549048,95723.0,95722.0,0.00010382]
[1746331175973,0.2875048,95723.0,95722.0,0.00010382]
[1746331177171,0.2895048,95723.0,95722.0,0.00010382]
[1746331178365,0.3201048,95723.0,95722.0,0.00010382]
[1746331179868,0.3201048,95723.0,95722.0,0.20901082]
[1746331180172,0.3201048,95723.0,95722.0,0.32701082]
[1746331180173,0.2701048,95723.0,95722.0,0.32701082]
[1746331199279,0.26990788,95723.0,95722.0,0.32701082]
[1746331210300,0.0652,95723.0,95722.0,0.32701082]
[1746331210493,0.2741048,95723.0,95722.0,0.32701082]
[1746331211299,0.2741048,95723.0,95722.0,0.33666406]
[1746331211700,0.2741048,95723.0,95722.0,0.32701082]
[1746331214703,0.2741048,95723.0,95722.0,0.68781082]
[1746331215004,0.2741048,95723.0,95722.0,0.95294141]
[1746331218110,0.2741048,95723.0,95722.0,0.68781082]
[1746331219708,0.2741048,95723.0,95722.0,0.32701082]
[1746331223704,0.0522198,95735.0,95734.0,0.2610935]
[1746331224108,0.0522198,95735.0,95734.0,0.3790935]
[1746331224311,0.2610984,95735.0,95734.0,0.4339127]
[1746331224512,0.2610984,95735.0,95734.0,0.3816935]
[1746331224814,0.2610984,95735.0,95734.0,0.3790935]
[1746331225203,0.2630984,95735.0,95734.0,0.3790935]
[1746331225909,0.2660984,95735.0,95734.0,0.3790935]
[1746331230614,0.2138786,95735.0,95734.0,0.3790935]
[1746331230816,0.0522148,95744.0,95743.0,0.208859]
[1746331231012,0.2910738,95744.0,95743.0,0.208859]
[1746331231214,0.2910738,95744.0,95743.0,0.326859]
[1746331231511,0.2910738,95744.0,95743.0,0.388659]
[1746331231713,0.2910738,95744.0,95743.0,0.357859]
[1746331232217,0.2940738,95744.0,95743.0,0.357859]
[1746331233014,0.2980738,95744.0,95743.0,0.358859]
[1746331233319,0.2980738,95744.0,95743.0,0.327859]
[1746331233515,0.2980738,95744.0,95743.0,0.119]
[1746331234222,0.3608738,95744.0,95743.0,0.001]
[1746331247134,0.2610812,95743.0,95742.0,0.2088627]
[1746331247533,0.3244812,95743.0,95742.0,0.2088627]
[1746331248125,0.3244812,95743.0,95742.0,0.3268627]
[1746331248430,0.3264812,95743.0,95742.0,0.3268627]
[1746331249323,0.3304812,95743.0,95742.0,0.3268627]
[1746331254645,0.3304812,95743.0,95742.0,0.3600627]
[1746331257035,0.3304812,95743.0,95742.0,0.3916627]
[1746331260346,0.2782655,95743.0,95742.0,0.3916627]
[1746331260545,0.2472655,95743.0,95742.0,0.3916627]
[1746331261239,0.2472655,95743.0,95742.0,0.1828]
[1746331261440,0.2472655,95743.0,95742.0,0.3916627]
[1746331263347,0.2472655,95743.0,95742.0,0.65776786]
[1746331267151,0.2472655,95743.0,95742.0,0.3916627]
[1746331270753,0.2472655,95743.0,95742.0,0.60450216]
[1746331274247,0.2472655,95743.0,95742.0,0.3916627]
[1746331279549,0.2472655,95743.0,95742.0,0.118]
[1746331279950,0.2472655,95743.0,95742.0,0.3268634]
[1746331281256,0.2472655,95743.0,95742.0,0.3888634]
[1746331300176,0.2472655,95743.0,95742.0,0.7496634]
[1746331302575,0.0384,95743.0,95742.0,0.7496634]
[1746331302776,0.2088314,95761.0,95760.0,0.313223]
[1746331302972,0.0522016,95769.0,95760.0,0.0522041]
[1746331303274,0.1126863,95764.0,95763.0,0.2610171]
[1746331303975,0.001,95766.0,95765.0,0.2088132]
[1746331304571,0.209811,95766.0,95765.0,0.2088132]
[1746331304766,0.209811,95766.0,95765.0,0.2722132]
[1746331304970,0.209811,95766.0,95765.0,0.28186252]
[1746331305170,0.209811,95766.0,95765.0,0.39986252]
[1746331305370,0.216811,95766.0,95765.0,0.40086252]
[1746331306180,0.222811,95766.0,95765.0,0.40186252]
[1746331306374,0.215811,95766.0,95765.0,0.40086252]
[1746331306569,0.221811,95766.0,95765.0,0.40186252]
[1746331307681,0.221811,95766.0,95765.0,0.77037068]
[1746331316391,0.3608,95794.0,95773.0,0.2087957]
[1746331316594,0.0521958,95779.0,95778.0,0.2087848]
[1746331316890,0.0830958,95779.0,95778.0,0.2087848]
[1746331317086,0.0830958,95779.0,95778.0,0.3267848]
[1746331317286,0.0830958,95779.0,95778.0,0.3909848]
[1746331317684,0.2396906,95779.0,95778.0,0.3909848]
[1746331318691,0.2496906,95779.0,95778.0,0.3919848]
[1746331319194,0.2187906,95779.0,95778.0,0.3919848]
[1746331319401,0.2267906,95779.0,95778.0,0.3929848]
[1746331319598,0.2587906,95779.0,95778.0,0.3929848]
[1746331324802,0.2890906,95779.0,95778.0,0.3929848]
[1746331329001,0.2890906,95779.0,95778.0,0.3613848]
[1746331329196,0.2890906,95779.0,95778.0,0.12]
[1746331330305,0.2890906,95779.0,95778.0,0.002]
[1746331334102,0.4070906,95779.0,95778.0,0.002]
[1746331335211,0.2890906,95779.0,95778.0,0.002]
[1746331350721,0.2267906,95779.0,95778.0,0.002]
[1746331350917,0.2267906,95779.0,95778.0,0.2107848]
[1746331351220,0.2267906,95779.0,95778.0,0.2737848]
[1746331355821,0.2267906,95779.0,95778.0,0.0334]
[1746331356020,0.2929906,95779.0,95778.0,0.0334]
[1746331362427,0.0842,95779.0,95777.0,0.0314]
[1746331362726,0.2087914,95775.0,95774.0,0.04581]
[1746331363128,0.2088001,95771.0,95770.0,0.06332]
[1746331363322,0.5696001,95771.0,95770.0,0.06332]
[1746331363521,0.5686001,95771.0,95770.0,0.06332]
[1746331363723,0.5676001,95771.0,95770.0,0.06332]
[1746331363923,0.6639001,95771.0,95770.0,0.06332]
[1746331364327,0.6699001,95771.0,95770.0,0.06432]
[1746331365132,0.6769001,95771.0,95770.0,0.06532]
[1746331367030,0.6769001,95771.0,95770.0,0.09772]
[1746331372235,0.7949001,95771.0,95770.0,0.09772]
[1746331373128,0.6769001,95771.0,95770.0,0.09772]
[1746331382035,0.3161001,95771.0,95770.0,0.09772]
[1746331382340,0.6769001,95771.0,95770.0,0.09772]
[1746331384241,0.6769001,95771.0,95770.0,0.002]
[1746331384441,0.7269001,95771.0,95770.0,0.002]
[1746331385235,0.8449001,95771.0,95770.0,0.002]
[1746331386945,0.8549001,95771.0,95770.0,0.002]
[1746331390043,0.8449001,95771.0,95770.0,0.002]
[1746331390231,0.7269001,95771.0,95770.0,0.002]
[1746331390837,0.7469001,95771.0,95770.0,0.002]
[1746331395045,0.3861001,95771.0,95770.0,0.002]
[1746331395254,0.7469001,95771.0,95770.0,0.002]
[1746331397053,0.7269001,95771.0,95770.0,0.002]
[1746331402157,0.6306001,95771.0,95770.0,0.002]
[1746331402352,0.2198001,95771.0,95770.0,0.2108023]
[1746331402660,0.07977418,95777.0,95776.0,0.2087892]
[1746331402958,0.07977418,95777.0,95776.0,0.6328692]
[1746331403168,0.07977418,95777.0,95776.0,1.0008692]
[1746331403768,0.08577418,95777.0,95776.0,0.8156692]
[1746331404063,0.09177418,95777.0,95776.0,0.8166692]
[1746331404463,0.04187418,95777.0,95776.0,0.8166692]
[1746331404668,0.052194,95783.0,95779.0,0.2087827]
[1746331404967,0.2102805,95780.0,95779.0,0.2087827]
[1746331405169,0.2102805,95780.0,95779.0,0.3267827]
[1746331406070,0.2132805,95780.0,95779.0,0.3267827]
[1746331406967,0.2102805,95780.0,95779.0,0.3277827]
[1746331407168,0.2122805,95780.0,95779.0,0.3277827]
[1746331407963,0.2122805,95780.0,95779.0,0.119]
[1746331408169,0.2122805,95780.0,95779.0,0.001]
[1746331409170,0.2122805,95780.0,95779.0,0.119]
[1746331411773,0.2122805,95780.0,95779.0,0.3277827]
[1746331413164,0.2122805,95780.0,95779.0,0.2097827]
[1746331414070,0.2122805,95780.0,95779.0,0.3277827]
[1746331414269,0.2431805,95780.0,95779.0,0.119]
[1746331415773,0.2431805,95780.0,95779.0,0.3277827]
[1746331415973,0.2122805,95780.0,95779.0,0.3277827]
[1746331416174,0.2122805,95780.0,95779.0,0.2097827]
[1746331417174,0.2122805,95780.0,95779.0,0.3277827]
[1746331418575,0.2122805,95780.0,95779.0,0.119]
[1746331419275,0.2424805,95780.0,95779.0,0.119]
[1746331420070,0.2424805,95780.0,95779.0,0.1826]
[1746331420378,0.2424805,95780.0,95779.0,0.3913827]
[1746331424679,0.2424805,95780.0,95779.0,0.1826]
[1746331430786,0.2740805,95780.0,95779.0,0.1826]
[1746331434285,0.2740805,95780.0,95779.0,0.0646]
[1746331437686,0.2087848,95778.0,95777.0,0.11632896]
[1746331438191,0.2087848,95778.0,95777.0,0.23432896]
[1746331438380,0.2087848,95778.0,95777.0,0.118]
[1746331439279,0.2107848,95778.0,95777.0,0.118]
[1746331439485,0.2127848,95778.0,95777.0,0.118]
[1746331440190,0.2127848,95778.0,95777.0,0.326787]
[1746331440895,0.2127848,95778.0,95777.0,0.357487]
[1746331441289,0.2127848,95778.0,95777.0,0.390287]
[1746331442294,0.2127848,95778.0,95777.0,0.1815]
[1746331442998,0.2434848,95778.0,95777.0,0.118]
[1746331445188,0.208787,95777.0,95776.0,0.06328]
[1746331445405,0.208787,95777.0,95773.0,0.04581]
[1746331445406,0.2087936,95774.0,95773.0,0.0058744]
[1746331445592,0.2088066,95768.0,95763.0,0.06344]
[1746331446482,0.2712066,95768.0,95763.0,0.06344]
[1746331447085,0.2712066,95768.0,95764.0,0.0304]
[1746331447297,0.2712066,95768.0,95765.0,0.26610516]
[1746331447298,0.208811,95766.0,95765.0,0.26610516]
[1746331447497,0.569611,95766.0,95765.0,0.26610516]
[1746331449283,0.632911,95766.0,95765.0,0.26610516]
[1746331450196,0.632911,95766.0,95765.0,0.26710516]
[1746331450498,0.634911,95766.0,95765.0,0.26710516]
[1746331450890,0.632911,95766.0,95765.0,0.26710516]
[1746331451195,0.634911,95766.0,95765.0,0.29800516]
[1746331451699,0.634911,95766.0,95765.0,0.0319]
[1746331452000,0.242611,95766.0,95765.0,0.0309]
[1746331452190,0.242611,95766.0,95765.0,0.1489]
[1746331452497,0.003,95766.0,95765.0,0.3577132]
[1746331452899,0.004,95766.0,95765.0,0.3894132]
[1746331453298,0.212811,95766.0,95765.0,0.3894132]
[1746331454097,0.212811,95766.0,95765.0,0.60175512]
[1746331454290,0.210811,95766.0,95765.0,0.60275512]
[1746331455294,0.208811,95766.0,95765.0,0.60275512]
[1746331455500,0.208811,95766.0,95765.0,0.60475512]
[1746331457601,0.208811,95766.0,95765.0,0.70917512]
[1746331458598,0.208811,95766.0,95765.0,0.4968332]
[1746331461002,0.2088075,95768.0,95767.0,0.2610063]
[1746331461202,0.2088075,95768.0,95767.0,0.3790063]
[1746331462296,0.0332,95774.0,95770.0,0.0522001]
[1746331462604,0.2419936,95774.0,95773.0,0.5695957]
[1746331463201,0.2419936,95774.0,95773.0,0.6875957]
[1746331464594,0.2429936,95774.0,95773.0,0.6875957]
[1746331466404,0.2429936,95774.0,95773.0,0.7512357]
[1746331472602,0.0342,95774.0,95773.0,0.7512357]
[1746331472810,0.2429936,95774.0,95773.0,0.7512357]
[1746331473010,0.2752936,95774.0,95773.0,0.7512357]
[1746331483626,0.2752936,95774.0,95773.0,0.6875957]
[1746331483825,0.2752936,95774.0,95773.0,0.7511957]
[1746331497429,0.2752936,95774.0,95773.0,0.7836957]
[1746331505436,0.0665,95774.0,95773.0,0.88810769]
[1746331505635,0.2404608,95790.0,95789.0,0.2087609]
[1746331505942,0.0317,95790.0,95789.0,0.6330809]
[1746331506133,0.2404587,95790.0,95789.0,0.7510809]
[1746331506742,0.2444587,95790.0,95789.0,0.7510809]
[1746331507533,0.2484587,95790.0,95789.0,0.7510809]
[1746331507934,0.2474587,95790.0,95789.0,0.7510809]
[1746331508333,0.2464587,95790.0,95789.0,0.7510809]
[1746331509339,0.2464587,95790.0,95789.0,0.118]
[1746331509540,0.2464587,95790.0,95789.0,0.0681]
[1746331509836,0.2964587,95790.0,95789.0,0.0681]
[1746331510242,0.2087783,95781.0,95780.0,0.26610516]
[1746331510442,0.5695783,95781.0,95780.0,0.26610516]
[1746331511035,0.6320783,95781.0,95780.0,0.47488566]
[1746331511545,0.6330783,95781.0,95780.0,0.47488566]
[1746331511841,0.0635,95781.0,95780.0,0.47488566]
[1746331512036,0.0635,95781.0,95780.0,0.57170566]
[1746331512236,0.2087508,95794.0,95793.0,0.2609354]
[1746331512846,0.2732508,95794.0,95793.0,0.2609354]
[1746331513646,0.2762508,95794.0,95793.0,0.2609354]
[1746331514346,0.2762508,95794.0,95793.0,0.3244554]
[1746331514546,0.2792508,95794.0,95793.0,0.3244554]
[1746331515242,0.2792508,95794.0,95793.0,0.2722678]
[1746331520139,0.0705,95794.0,95793.0,0.2722678]
[1746331520651,0.26092,95803.0,95802.0,0.2087325]
[1746331520851,0.29412,95803.0,95802.0,0.5695325]
[1746331521239,0.29412,95803.0,95802.0,0.6875325]
[1746331521434,0.0304,95806.0,95802.0,0.4788]
[1746331521640,0.0332,95805.0,95804.0,0.5695282]
[1746331522148,0.0332,95805.0,95804.0,0.6875282]
[1746331523049,0.4129633,95839.0,95804.0,0.58318]
[1746331523344,0.0327,95823.0,95814.0,0.5695064]
[1746331523548,0.0309,95822.0,95814.0,0.6330264]
[1746331524147,0.0045,95815.0,95814.0,0.6330264]
[1746331524448,0.0045,95815.0,95814.0,0.7510264]
[1746331524642,0.0045,95815.0,95814.0,0.85539439]
[1746331525149,0.0045,95815.0,95814.0,0.60497593]
[1746331525647,0.0015,95815.0,95814.0,0.60497593]
[1746331527245,0.0015,95815.0,95814.0,0.61263572]
[1746331528355,0.0015,95815.0,95814.0,1.11263572]
[1746331529149,0.0015,95815.0,95814.0,1.14573572]
[1746331538050,0.0015,95815.0,95814.0,1.17623572]
[1746331538543,0.0015,95815.0,95814.0,1.02192038]
[1746331542247,0.0015,95815.0,95814.0,0.90392038]
[1746331543154,0.0015,95815.0,95814.0,1.02192038]
[1746331544259,0.0015,95815.0,95814.0,0.90464038]
[1746331548855,0.0015,95815.0,95814.0,0.84420619]
[1746331549363,0.0015,95815.0,95814.0,0.96220619]
[1746331550151,0.0015,95815.0,95814.0,0.84420619]
[1746331554856,0.0015,95815.0,95814.0,0.81370619]
[1746331555260,0.1195,95815.0,95814.0,0.81370619]
[1746331559163,0.0015,95815.0,95814.0,0.81370619]
[1746331560165,0.1195,95815.0,95814.0,0.81370619]
[1746331561164,0.0015,95815.0,95814.0,0.81370619]
[1746331563162,0.1195,95815.0,95814.0,0.81370619]
[1746331563557,0.1195,95815.0,95814.0,0.84600619]
[1746331564663,0.1195,95815.0,95814.0,0.63729979]
[1746331565669,0.1195,95815.0,95814.0,0.84600619]
[1746331566166,0.0015,95815.0,95814.0,0.84600619]
[1746331567267,0.0015,95815.0,95814.0,1.11211135]
[1746331570869,0.0015,95815.0,95814.0,1.07981135]
[1746331571166,0.1195,95815.0,95814.0,1.07981135]
[1746331571961,0.1195,95815.0,95814.0,0.900179]
[1746331574072,0.0015,95815.0,95814.0,0.900179]
[1746331575170,0.0015,95815.0,95814.0,0.90793608]
[1746331575778,0.0347,95815.0,95814.0,0.90793608]
[1746331576974,0.0347,95815.0,95814.0,0.93873608]
[1746331580074,0.1527,95815.0,95814.0,0.67263092]
[1746331580575,0.1836,95815.0,95814.0,0.67263092]
[1746331582280,0.0656,95815.0,95814.0,0.67263092]
[1746331582779,0.0347,95815.0,95814.0,0.67263092]
[1746331584081,0.1527,95815.0,95814.0,0.67263092]
[1746331585293,0.0347,95815.0,95814.0,0.67263092]
[1746331588790,0.0665,95815.0,95814.0,0.67263092]
[1746331589191,0.1845,95815.0,95814.0,0.67263092]
[1746331590394,0.1845,95815.0,95814.0,0.64183092]
[1746331594100,0.1845,95815.0,95814.0,0.60873092]
[1746331595199,0.1845,95815.0,95814.0,0.64113092]
[1746331595495,0.1845,95815.0,95814.0,0.90650294]
[1746331599505,0.1845,95815.0,95814.0,0.64113092]
[1746331603896,0.1845,95815.0,95814.0,0.67273092]
[1746331610108,0.1845,95815.0,95814.0,0.93810294]
[1746331613307,0.1845,95815.0,95814.0,0.67273092]
[1746331618613,0.1513,95815.0,95814.0,0.67273092]
[1746331619212,0.0333,95815.0,95814.0,0.67273092]
[1746331620112,0.1513,95815.0,95814.0,0.67273092]
[1746331624216,0.1195,95815.0,95814.0,0.67273092]
[1746331625320,0.0015,95815.0,95814.0,0.67273092]
[1746331628320,0.0324,95815.0,95814.0,0.67273092]
[1746331630123,0.1504,95815.0,95814.0,0.67273092]
[1746331631216,0.0655,95815.0,95814.0,0.67273092]
[1746331633319,0.0655,95815.0,95814.0,0.50160475]
[1746331633528,0.0655,95815.0,95814.0,0.47000475]
[1746331635113,0.1835,95815.0,95814.0,0.47000475]
[1746331639033,0.1835,95815.0,95814.0,0.43760475]
[1746331641431,0.1835,95815.0,95814.0,0.37336475]
[1746331641631,0.537868,95815.0,95814.0,0.43672475]
[1746331641836,0.4965722,95815.0,95814.0,0.43672475]
[1746331642132,0.287868,95815.0,95814.0,0.43672475]
[1746331642531,0.287868,95815.0,95814.0,0.27982348]
[1746331642926,0.318268,95815.0,95814.0,0.27982348]
[1746331644728,0.5269722,95815.0,95814.0,0.27982348]
[1746331649244,0.4226042,95815.0,95814.0,0.27982348]
[1746331651938,0.4226042,95815.0,95814.0,0.07111708]
[1746331652739,0.4226042,95815.0,95814.0,0.27982348]
[1746331653747,0.4226042,95815.0,95814.0,0.21646348]
[1746331653945,0.4226042,95815.0,95814.0,0.27982348]
[1746331655150,0.7834042,95815.0,95814.0,0.27982348]
[1746331663749,0.4226042,95815.0,95814.0,0.27982348]
[1746331664050,0.7834042,95815.0,95814.0,0.27982348]
[1746331664752,0.4226042,95815.0,95814.0,0.27982348]
[1746331665244,0.7834042,95815.0,95814.0,0.27982348]
[1746331669956,0.7834042,95815.0,95814.0,0.31132348]
[1746331670158,0.7199042,95815.0,95814.0,0.31132348]
[1746331670346,0.6890042,95815.0,95814.0,0.31132348]
[1746331671858,0.6890042,95815.0,95814.0,0.34262348]
[1746331673350,0.3282042,95815.0,95814.0,0.34262348]
[1746331673552,0.6890042,95815.0,95814.0,0.34262348]
[1746331675958,0.7197042,95815.0,95814.0,0.34262348]
[1746331688174,0.3589042,95815.0,95814.0,0.34262348]
[1746331688373,0.7197042,95815.0,95814.0,0.34262348]
[1746331691480,0.6890042,95815.0,95814.0,0.34262348]
[1746331691682,0.3282042,95815.0,95814.0,0.34262348]
[1746331694076,0.3604042,95815.0,95814.0,0.34262348]
[1746331704486,0.3604042,95815.0,95814.0,0.55490787]
[1746331710687,0.3915042,95815.0,95814.0,0.55490787]
[1746331712588,0.1195,95815.0,95814.0,0.55490787]
[1746331713188,0.0015,95815.0,95814.0,0.55490787]
[1746331713990,0.0015,95815.0,95814.0,0.5702997]
[1746331715091,0.0015,95815.0,95814.0,0.35801531]
[1746331718692,0.0015,95815.0,95814.0,0.35807978]
[1746331718891,0.0015,95815.0,95814.0,0.35807976]
[1746331719299,0.0015,95815.0,95814.0,0.85807976]
[1746331720093,0.0015,95815.0,95814.0,0.84262348]
[1746331726804,0.34064,95826.0,95825.0,0.2086824]
[1746331727208,0.45864,95826.0,95825.0,0.2240444]
[1746331727708,0.45864,95826.0,95825.0,0.22404422]